fUST/lending_fUST_20251024
["ID","MTS","AMOUNT","RATE_DAILY","PERIOD"]
[392182212,1761242123918,-500.0,0.00022689,2]
[392182213,1761242123948,-425.15450408,0.00022689,2]
[392182214,1761242134145,624.65,0.0002268,10]
[392182215,1761242135086,-9375.36,0.0002269,2]
[392182216,1761242138066,-10000.01,0.0002269,2]
[392182217,1761242138301,-10000.01,0.0002269,2]
[392182218,1761242138426,-10000.01,0.0002269,2]
[392182219,1761242138535,-10000.01,0.0002269,2]
[392182220,1761242138690,-10000.01,0.0002269,2]
[392182221,1761242138823,-10000.01,0.0002269,2]
[392182222,1761242138959,-10000.01,0.0002269,2]
[392182223,1761242143965,-10000.01,0.0002269,2]
[392182224,1761242144278,-10000.01,0.0002269,2]
[392182225,1761242161406,5000.0,0.00022666,2]
[392182226,1761242170261,2056.6257733,0.00022666,2]
[392182227,1761242170568,150.0,0.00019397,2]
[392182228,1761242170995,150.0,0.00020321,2]
[392182229,1761242171510,198.72,0.00021245,2]
[392182230,1761242171927,264.96,0.00022168,2]
[392182231,1761242174737,150.0,0.00013308,30]
[392182232,1761242175151,150.0,0.00013942,30]
[392182233,1761242175547,150.0,0.00014576,30]
[392182234,1761242175984,150.0,0.0001521,30]
[392182235,1761242176362,150.0,0.00015843,30]
[392182236,1761242176755,170.33,0.00016477,30]
[392182237,1761242177173,198.72,0.00017111,30]
[392182238,1761242177626,227.11,0.00017745,30]
[392182239,1761242178376,833.5442267,0.00022666,2]
[392182240,1761242178399,4166.4557733,0.00022666,2]
[392182241,1761242187327,5000.0,0.00022666,2]
[392182242,1761242206489,833.5542267,0.00022056,2]
[392182243,1761242206510,1092.43601869,0.00022056,2]
[392182244,1761242206808,1925.99024539,0.00022288,2]
[392182245,1761242209550,5000.0,0.00022666,2]
[392182246,1761242211728,480.45430036,0.00022512,2]
[392182247,1761242219306,1501.12943556,0.00021716,2]
[392182248,1761242219329,319.49371644,0.00021716,2]
[392182249,1761242225379,1907.23732465,0.00022666,2]
[392182250,1761242225943,196.0,0.00016,2]
[392182251,1761242226227,196.0,0.00016068,2]
[392182252,1761242226496,196.0,0.00016135,2]
[392182253,1761242226773,196.0,0.00016203,2]
[392182254,1761242227046,196.0,0.00016271,2]
[392182255,1761242227343,196.0,0.00016339,2]
[392182256,1761242227618,196.0,0.00016406,2]
[392182257,1761242227893,196.0,0.00016474,2]
[392182258,1761242228162,196.0,0.00016542,2]
[392182259,1761242228475,196.0,0.0001661,2]
[392182260,1761242228747,196.0,0.00016677,2]
[392182261,1761242229017,196.0,0.00016745,2]
[392182262,1761242229752,196.0,0.00016813,2]
[392182263,1761242230026,196.0,0.00016881,2]
[392182264,1761242230292,196.0,0.00016948,2]
[392182265,1761242230562,196.0,0.00017016,2]
[392182266,1761242230834,196.0,0.00017084,2]
[392182267,1761242231188,196.0,0.00017152,2]
[392182268,1761242231375,196.0,0.00017219,2]
[392182269,1761242231704,196.0,0.00017287,2]
[392182270,1761242231975,196.0,0.00017355,2]
[392182271,1761242232292,196.0,0.00017423,2]
[392182272,1761242232562,196.0,0.0001749,2]
[392182273,1761242232829,196.0,0.00017558,2]
[392182274,1761242233101,196.0,0.00017626,2]
[392182275,1761242233377,196.0,0.00017694,2]
[392182276,1761242233654,196.0,0.00017761,2]
[392182277,1761242233937,196.0,0.00017829,2]
[392182278,1761242234208,196.0,0.00017897,2]
[392182279,1761242234325,2089.27895891,0.00022666,2]
[392182280,1761242234347,2910.72104109,0.00022666,2]
[392182281,1761242234479,196.0,0.00017965,2]
[392182282,1761242234747,196.0,0.00018032,2]
[392182283,1761242235131,356.00784096,0.000181,2]
[392182284,1761242236813,876.17880019,0.0003,120]
[392182285,1761242243397,4786.70915826,0.00022666,2]
[392182286,1761242245698,150.0,0.0001933,2]
[392182287,1761242246116,233.33,0.00020251,2]
[392182288,1761242246506,350.0,0.00021171,2]
[392182289,1761242246928,466.67,0.00022092,2]
[392182290,1761242249962,150.0,0.00012898,30]
[392182291,1761242250377,150.0,0.00013512,30]
[392182292,1761242250782,54.57195969,0.00014126,30]
[392182293,1761242250807,95.42804031,0.00014126,30]
[392182294,1761242251246,200.0,0.0001474,30]
[392182295,1761242251744,5000.0,0.00022666,2]
[392182296,1761242252182,250.0,0.00015355,30]
[392182297,1761242252469,205.60680494,0.00022353,2]
[392182298,1761242252615,300.0,0.00015969,30]
[392182299,1761242253557,350.0,0.00016583,30]
[392182300,1761242253996,400.0,0.00017197,30]
[392182301,1761242254396,450.0,0.00017811,30]
[392182302,1761242254917,316.6615466,0.00018426,30]
[392182303,1761242267589,-5000.0,0.00022456,2]
[392182304,1761242274900,0.01,0.00022456,2]
[392182305,1761242274926,4999.99,0.00022456,2]
[392182306,1761242282111,993.2280263,0.00021692,2]
[392182307,1761242282703,4006.7919737,0.00022456,2]
[392182308,1761242282732,993.2080263,0.00022456,2]
[392182309,1761242291256,3038.9377948,0.00022597,2]
[392182310,1761242299602,5000.0,0.00022597,2]
[392182311,1761242307682,1961.0722052,0.00022597,2]
[392182312,1761242307704,3038.9277948,0.00022597,2]
[392182313,1761242322424,150.0,0.00019254,2]
[392182314,1761242322819,201.13,0.00020171,2]
[392182315,1761242323236,301.7,0.00021088,2]
[392182316,1761242323394,5000.0,0.00022597,2]
[392182317,1761242323649,402.26,0.00022005,2]
[392182318,1761242326526,150.0,0.00013248,30]
[392182319,1761242327070,150.0,0.00013879,30]
[392182320,1761242327346,150.0,0.0001451,30]
[392182321,1761242327736,172.4,0.00015141,30]
[392182322,1761242328135,215.5,0.00015772,30]
[392182323,1761242328547,68.0922052,0.00016402,30]
[392182324,1761242328576,190.5077948,0.00016402,30]
[392182325,1761242328838,1867.00162942,0.00022106,2]
[392182326,1761242328941,301.7,0.00017033,30]
[392182327,1761242329219,1867.00162942,0.00022323,2]
[392182328,1761242329333,344.79,0.00017664,30]
[392182329,1761242329765,387.89,0.00018295,30]
[392182330,1761242330153,190.14,0.00018926,30]
[392182331,1761242331808,5000.0,0.00022597,2]
[392182332,1761242345771,321.60039205,0.00016,2]
[392182333,1761242347514,4678.40960795,0.00022597,2]
[392182334,1761242347538,321.59039205,0.00022597,2]
[392182335,1761242355876,5000.0,0.00022597,2]
[392182336,1761242372115,4678.41960795,0.00022597,2]
[392182337,1761242372137,321.58039205,0.00022597,2]
[392182338,1761242380457,5000.0,0.00022597,2]
[392182339,1761242392080,162.50759205,0.000225,2]
[392182340,1761242396579,4515.9220159,0.00022597,2]
[392182341,1761242396911,154.78,0.00019223,2]
[392182342,1761242397401,309.56,0.00020139,2]
[392182343,1761242397794,464.34,0.00021054,2]
[392182344,1761242398224,619.11,0.0002197,2]
[392182345,1761242401113,150.0,0.00013173,30]
[392182346,1761242401602,150.0,0.00013801,30]
[392182347,1761242402008,199.0,0.00014428,30]
[392182348,1761242402468,265.33,0.00015055,30]
[392182349,1761242402880,331.67,0.00015683,30]
[392182350,1761242403300,398.0,0.0001631,30]
[392182351,1761242403724,464.34,0.00016937,30]
[392182352,1761242404124,530.67,0.00017565,30]
[392182353,1761242404516,597.0,0.00018192,30]
[392182354,1761242404928,562.33577964,0.00018819,30]
[392182355,1761242405113,4803.87422036,0.00022573,2]
[392182356,1761242405138,196.12577964,0.00022573,2]
[392182357,1761242408889,395.21084133,0.000225,2]
[392182358,1761242427550,5000.0,0.00022573,2]
[392182361,1761242449025,1867.00162942,0.00022371,2]
[392182362,1761242449323,1867.00162942,0.00022527,2]
[392182363,1761242449668,674.67012019,0.00022573,2]
[392182364,1761242449690,4325.32987981,0.00022573,2]
[392182365,1761242453390,181.0,0.00022,2]
[392182366,1761242466595,196.0,0.00016,2]
[392182367,1761242467368,196.0,0.00016045,2]
[392182368,1761242467659,196.0,0.00016089,2]
[392182369,1761242467961,196.0,0.00016134,2]
[392182370,1761242468288,196.0,0.00016179,2]
[392182371,1761242468757,1000.0,0.00021651,2]
[392182372,1761242469064,196.0,0.00016223,2]
[392182373,1761242469361,196.0,0.00016268,2]
[392182374,1761242469663,196.0,0.00016313,2]
[392182375,1761242470019,196.0,0.00016357,2]
[392182376,1761242470221,196.0,0.00016402,2]
[392182377,1761242470500,196.0,0.00016447,2]
[392182378,1761242470780,196.0,0.00016491,2]
[392182379,1761242471067,196.0,0.00016536,2]
[392182380,1761242471340,196.0,0.00016581,2]
[392182381,1761242471619,196.0,0.00016626,2]
[392182382,1761242471754,150.0,0.00019328,2]
[392182383,1761242471909,196.0,0.0001667,2]
[392182384,1761242472220,1093.43,0.00022573,2]
[392182385,1761242472256,288.39,0.00020249,2]
[392182386,1761242472557,432.59,0.00021169,2]
[392182387,1761242472758,196.0,0.00016715,2]
[392182388,1761242472973,576.79,0.0002209,2]
[392182389,1761242473124,196.0,0.0001676,2]
[392182390,1761242473424,196.0,0.00016804,2]
[392182391,1761242473762,196.0,0.00016849,2]
[392182392,1761242474048,196.0,0.00016894,2]
[392182393,1761242474317,196.0,0.00016938,2]
[392182394,1761242474594,196.0,0.00016983,2]
[392182395,1761242474900,196.0,0.00017028,2]
[392182396,1761242475182,196.0,0.00017072,2]
[392182397,1761242475812,150.0,0.00013198,30]
[392182398,1761242475948,196.0,0.00017117,2]
[392182399,1761242476215,150.0,0.00013827,30]
[392182400,1761242476244,196.0,0.00017162,2]
[392182401,1761242476518,196.0,0.00017206,2]
[392182402,1761242476619,185.4,0.00014455,30]
[392182403,1761242476787,196.0,0.00017251,2]
[392182404,1761242477027,247.2,0.00015084,30]
[392182405,1761242477062,196.0,0.00017296,2]
[392182406,1761242477329,196.0,0.0001734,2]
[392182407,1761242477453,308.99,0.00015712,30]
[392182408,1761242477603,125.22,0.00017385,2]
[392182409,1761242477628,70.78,0.00017385,2]
[392182410,1761242477847,370.79,0.00016341,30]
[392182411,1761242477880,196.0,0.0001743,2]
[392182412,1761242478154,196.0,0.00017474,2]
[392182413,1761242478242,432.59,0.00016969,30]
[392182414,1761242478423,196.0,0.00017519,2]
[392182415,1761242478696,196.0,0.00017564,2]
[392182416,1761242478728,494.39,0.00017598,30]
[392182417,1761242478976,196.0,0.00017609,2]
[392182418,1761242479103,556.19,0.00018226,30]
[392182419,1761242479253,196.0,0.00017653,2]
[392182420,1761242479508,497.59,0.00018855,30]
[392182421,1761242479535,196.0,0.00017698,2]
[392182422,1761242479820,196.0,0.00017743,2]
[392182423,1761242479950,5000.0,0.00022573,2]
[392182424,1761242480174,196.0,0.00017787,2]
[392182425,1761242480462,196.0,0.00017832,2]
[392182426,1761242480654,196.0,0.00017877,2]
[392182427,1761242480939,196.0,0.00017921,2]
[392182428,1761242481208,196.0,0.00017966,2]
[392182429,1761242481483,29.68,0.00018011,2]
[392182430,1761242481507,166.32,0.00018011,2]
[392182431,1761242481767,196.0,0.00018055,2]
[392182432,1761242482047,268.04473426,0.000181,2]
[392182433,1761242482908,9369.64526574,0.0001799,2]
[392182434,1761242482931,10000.01,0.0001799,2]
[392182435,1761242482953,10000.01,0.0001799,2]
[392182436,1761242482976,10000.01,0.0001799,2]
[392182437,1761242483002,24416.37148449,0.0001799,2]
[392182438,1761242490515,-290.64945393,0.0001799,2]
[392182439,1761242492104,-408.22555539,0.0001799,2]
[392182440,1761242495217,-220.52147883,0.0001799,2]
[392182441,1761242495385,5000.0,0.00020121,7]
[392182442,1761242497144,-295.99291503,0.0001799,2]
[392182443,1761242500566,-181.56556913,0.0001799,2]
[392182444,1761242503205,5000.0,0.00020121,7]
[392182445,1761242504298,-441.14,0.0001799,2]
[392182446,1761242508725,-432.55555567,0.0001799,2]
[392182447,1761242510272,-258.15826098,0.0001799,2]
[392182448,1761242511796,-319.06619934,0.0001799,2]
[392182449,1761242517073,-256.73,0.0001799,2]
[392182450,1761242518210,5000.0,0.0001799,2]
[392182451,1761242521213,-163.00999997,0.0001799,2]
[392182452,1761242523917,-319.58095645,0.0001799,2]
[392182453,1761242525127,300.0,0.00017989,2]
[392182454,1761242526470,1961.0622052,0.0001799,2]
[392182455,1761242532490,-169.64000003,0.0001799,2]
[392182456,1761242541895,2738.9477948,0.0001799,2]
[392182457,1761242541919,2261.0522052,0.0001799,2]
[392182458,1761242542611,-191.37,0.0001799,2]
[392182459,1761242544719,-239.7091623,0.0001799,2]
[392182460,1761242546218,-164.77441272,0.0001799,2]
[392182461,1761242548790,-249.12172199,0.0001799,2]
[392182462,1761242550554,150.0,0.00013009,30]
[392182463,1761242550965,150.0,0.00013629,30]
[392182464,1761242551371,217.96,0.00014248,30]
[392182465,1761242551750,290.61,0.00014868,30]
[392182466,1761242551973,-215.53506521,0.0001799,2]
[392182467,1761242552168,363.26,0.00015487,30]
[392182468,1761242553179,435.91,0.00016107,30]
[392182469,1761242553503,508.57,0.00016726,30]
[392182470,1761242553537,500.0,0.00017989,2]
[392182471,1761242553565,500.0,0.00017989,2]
[392182472,1761242553604,236.00346444,0.00017989,2]
[392182473,1761242553639,237.28849887,0.00017989,2]
[392182474,1761242553680,545.13844426,0.00017989,2]
[392182475,1761242553709,500.0,0.00017989,2]
[392182476,1761242553765,179.34178632,0.00017989,2]
[392182477,1761242553955,581.22,0.00017346,30]
[392182478,1761242554349,653.87,0.00017965,30]
[392182479,1761242554733,644.48357736,0.00018585,30]
[392182480,1761242557441,-168.78025044,0.0001799,2]
[392182481,1761242558009,1200.0,0.00017989,2]
[392182482,1761242564511,3841.18560091,0.0001799,2]
[392182483,1761242564536,1158.81439909,0.0001799,2]
[392182484,1761242566840,-427.75979296,0.0001799,2]
[392182602,1761242574640,-304.18963847,0.0001799,2]
[392182622,1761242577724,-429.36506362,0.0001799,2]
[392182623,1761242581078,5000.0,0.0001799,2]
[392182624,1761242583133,-232.3096386,0.0001799,2]
[392182625,1761242584652,-198.076796,0.0001799,2]
[392182626,1761242588575,-196.0,0.00016,2]
[392182627,1761242588603,-196.0,0.00016525,2]
[392182628,1761242588633,-196.0,0.0001705,2]
[392182629,1761242588663,-196.0,0.00017575,2]
[392182630,1761242588990,-196.0,0.0001584,2]
[392182631,1761242589539,-173.75805576,0.0001799,2]
[392182632,1761242591505,-155.36852801,0.0001799,2]
[392182633,1761242592137,-4397.61179591,0.0001799,2]
[392182634,1761242592188,-10000.01,0.0001799,2]
[392182635,1761242592360,-10000.01,0.0001799,2]
[392182636,1761242592530,-4909.36738303,0.0001799,2]
[392182637,1761242592565,-181.27523394,0.000181,2]
[392182638,1761242592669,-42.86616163,0.000181,2]
[392182639,1761242592696,-164.77441272,0.00018249,2]
[392182640,1761242597567,173.75805576,0.00018249,2]
[392182641,1761242599845,-300.0,0.00018349,2]
[392182642,1761242599870,-24.76381016,0.00018349,2]
[392182643,1761242601664,-275.23618984,0.00018349,2]
[392182644,1761242601694,-300.0,0.00018349,2]
[392182645,1761242601724,-300.0,0.00018349,2]
[392182646,1761242601754,-300.0,0.00018349,2]
[392182647,1761242601783,-300.0,0.00018349,2]
[392182648,1761242601812,-300.0,0.00018349,2]
[392182649,1761242601841,-300.0,0.00018349,2]
[392182650,1761242601870,-300.0,0.00018349,2]
[392182651,1761242601899,-300.0,0.00018349,2]
[392182652,1761242601928,-300.0,0.00018349,2]
[392182653,1761242601959,-300.0,0.00018349,2]
[392182654,1761242601991,-300.0,0.00018349,2]
[392182655,1761242602022,-300.0,0.00018349,2]
[392182656,1761242602052,-300.0,0.00018349,2]
[392182657,1761242605509,1649.53762032,0.00018349,2]
[392182658,1761242605532,3350.46237968,0.00018349,2]
[392182659,1761242606320,-165.07709862,0.00018715,2]
[392182660,1761242607791,-156.3361027,0.00018715,2]
[392182661,1761242614034,5000.0,0.00018349,2]
[392182662,1761242615409,-278.58679868,0.00018715,2]
[392182663,1761242615434,-4.34024244,0.000193,2]
[392182664,1761242620705,-308.17555582,0.00019628,2]
[392182665,1761242622153,-236.8945931,0.00019107,2]
[392182666,1761242623716,-336.66038077,0.00019107,2]
[392182667,1761242629649,150.0,0.00013158,30]
[392182668,1761242630064,191.49,0.00013785,30]
[392182669,1761242630604,287.23,0.00014411,30]
[392182670,1761242630897,382.97,0.00015038,30]
[392182671,1761242631336,478.72,0.00015664,30]
[392182672,1761242631733,574.46,0.00016291,30]
[392182673,1761242631773,-5000.0,0.00018916,2]
[392182674,1761242632129,670.21,0.00016917,30]
[392182675,1761242632392,-309.25,0.00019107,2]
[392182676,1761242632553,765.95,0.00017544,30]
[392182677,1761242632943,861.69,0.00018171,30]
[392182678,1761242633399,903.18325877,0.00018797,30]
[392182679,1761242634555,-277.59300397,0.00019107,2]
[392182680,1761242637226,-153.0,0.00019107,2]
[392182681,1761242637669,0.01,0.00018916,2]
[392182682,1761242637692,4999.99,0.00018916,2]
[392182683,1761242639897,-197.15306482,0.00019107,2]
[392182684,1761242641432,-251.91105268,0.00019107,2]
[392182685,1761242644070,-234.63472106,0.00019107,2]
[392182686,1761242646783,-449.99402101,0.00019107,2]
[392182687,1761242647136,-168.49803109,0.00019628,2]
[392182688,1761242652605,-232.3070892,0.000193,2]
[392182689,1761242661476,5000.0,0.00019107,2]
[392182690,1761242661854,-67.6929108,0.000193,2]
[392182691,1761242662140,-214.5496146,0.00019432,2]
[392182692,1761242662601,300.0,0.000193,2]
[392182693,1761242664303,-359.97049997,0.00019432,2]
[392182694,1761242669072,-190.83755394,0.00019432,2]
[392182695,1761242670044,359.97049997,0.000193,2]
[392182696,1761242671626,-251.28745975,0.00019432,2]
[392182697,1761242676886,-3983.35487174,0.00019432,2]
[392182698,1761242679202,-176.47183136,0.00019628,2]
[392182699,1761242681210,-228.15923265,0.00019628,2]
[392182700,1761242682150,300.0,0.000193,2]
[392182701,1761242682685,-360.97267489,0.00019628,2]
[392182702,1761242685492,1733.30025652,0.00019432,2]
[392182703,1761242685516,3266.69974348,0.00019432,2]
[392182704,1761242686723,-276.9209873,0.00019628,2]
[392182705,1761242691949,-160.80168689,0.00019628,2]
[392182706,1761242692646,-250.0,0.00019755,2]
[392182707,1761242693720,147.95118181,0.000193,2]
[392182708,1761242693742,152.04881819,0.000193,2]
[392182709,1761242701715,184.81,0.0001931,2]
[392182710,1761242705283,300.0,0.000193,2]
[392182711,1761242705890,-201.32649266,0.00019986,2]
[392182712,1761242706274,196.0,0.00016,2]
[392182713,1761242706538,150.0,0.00013054,30]
[392182714,1761242706578,318.16636544,0.000181,2]
[392182715,1761242706955,158.41,0.00013676,30]
[392182716,1761242707340,237.61,0.00014298,30]
[392182717,1761242707782,316.82,0.00014919,30]
[392182718,1761242708213,396.02,0.00015541,30]
[392182719,1761242708612,475.22,0.00016163,30]
[392182720,1761242709114,554.43,0.00016784,30]
[392182721,1761242709536,633.63,0.00017406,30]
[392182722,1761242709943,712.83,0.00018028,30]
[392182723,1761242710389,721.2370892,0.00018649,30]
[392182724,1761242710501,-239.24842303,0.00019628,2]
[392182725,1761242711920,-300.0,0.00019628,2]
[392182726,1761242720031,-206.01814056,0.000193,2]
[392182727,1761242721538,-93.98185944,0.000193,2]
[392182728,1761242721564,-300.0,0.000194,2]
[392182729,1761242721586,-55.45727386,0.00019628,2]
[392182730,1761242722054,-4405.29430311,0.00019628,2]
[392182731,1761242722172,-4798.67350734,0.00019986,2]
[392182732,1761242722397,402.66298532,0.0002,2]
[392182733,1761242722418,12.4726669,0.0002,2]
[392182734,1761242725164,300.0,0.000194,2]
[392182735,1761242725468,5000.0,0.0002,2]
[392182736,1761242730832,300.0,0.000194,2]
[392182737,1761242733834,4387.5373331,0.0002,2]
[392182738,1761242733858,612.4626669,0.0002,2]
[392182739,1761242741476,300.0,0.000194,2]
[392182740,1761242742276,859.75149822,0.00020087,2]
[392182741,1761242749168,5000.0,0.00020187,2]
[392182742,1761242752315,300.0,0.000194,2]
[392182743,1761242757100,3540.25850178,0.00020187,2]
[392182744,1761242757121,979.02426492,0.00020187,2]
[392182745,1761242763216,300.0,0.000194,2]
[392182746,1761242767321,-190.83755394,0.00020187,2]
[392182747,1761242767354,-369.62,0.00020229,2]
[392182748,1761242769180,300.0,0.0002,2]
[392182749,1761242771862,5000.0,0.00020229,2]
[392182750,1761242773871,300.0,0.000194,2]
[392182751,1761242777825,159.64,0.00019332,2]
[392182752,1761242779664,300.0,0.0002,2]
[392182753,1761242781896,150.0,0.00013269,30]
[392182754,1761242782234,-319.28,0.00020252,2]
[392182755,1761242782405,150.0,0.00013901,30]
[392182756,1761242782686,205.25,0.00014533,30]
[392182757,1761242783106,273.67,0.00015165,30]
[392182758,1761242783517,342.09,0.00015797,30]
[392182759,1761242783957,410.51,0.00016429,30]
[392182760,1761242784352,478.92,0.0001706,30]
[392182761,1761242784776,547.34,0.00017692,30]
[392182762,1761242785256,615.76,0.00018324,30]
[392182763,1761242785511,300.0,0.000194,2]
[392182764,1761242785660,589.44386274,0.00018956,30]
[392182765,1761242791579,1000.0,0.00020252,2]
[392182766,1761242791676,300.0,0.0002,2]
[392182767,1761242793749,1019.81325145,0.00020252,2]
[392182768,1761242794668,5000.0,0.00020252,2]
[392182769,1761242795843,300.0,0.000194,2]
[392182770,1761242797273,-367.90409265,0.00020261,2]
[392182771,1761242802432,300.0,0.0002,2]
[392182772,1761242807359,300.0,0.000194,2]
[392182773,1761242812330,-2218.35216866,0.0002027,2]
[392182774,1761242819577,1553.84380256,0.0002027,2]
[392182775,1761242825972,368.04371232,0.00016,2]
[392182776,1761242827380,-5000.0,0.0002084,2]
[392182777,1761242829535,0.01,0.000145,2]
[392182778,1761242829557,299.99,0.000145,2]
[392182779,1761242839733,5000.0,0.0002084,2]
[392182780,1761242842389,-300.0,0.00021049,2]
[392182781,1761242853624,176.16,0.0001935,2]
[392182782,1761242854019,352.31,0.00020272,2]
[392182783,1761242857452,-2858.2192711,0.0002105,2]
[392182784,1761242857600,-4283.5714578,0.0002105,2]
[392182785,1761242857761,150.0,0.0001301,30]
[392182786,1761242858157,150.99,0.0001363,30]
[392182787,1761242858573,226.49,0.0001425,30]
[392182788,1761242859003,301.98,0.00014869,30]
[392182789,1761242859423,377.48,0.00015489,30]
[392182790,1761242859841,452.97,0.00016108,30]
[392182791,1761242860242,528.47,0.00016728,30]
[392182792,1761242860677,603.97,0.00017347,30]
[392182793,1761242861059,679.46,0.00017967,30]
[392182794,1761242861479,680.45,0.00018586,30]
[392182795,1761242862607,1432.8670844,0.0002105,2]
[392182796,1761242862628,3567.1329156,0.0002105,2]
[392182797,1761242871006,3684.30222915,0.0002105,2]
[392182798,1761242872546,-1200.0,0.00021148,2]
[392182799,1761242886697,5000.0,0.00021148,2]
[392182800,1761242887562,-1200.0,0.00021178,2]
[392182801,1761242888817,300.0,0.000145,2]
[392182802,1761242900356,300.0,0.000145,2]
[392182803,1761242903616,-1399.183039,0.00021179,2]
[392182804,1761242903732,-2798.366078,0.00021179,2]
[392182805,1761242903910,-4403.277844,0.00021179,2]
[392182806,1761242909221,196.89094059,0.00021136,2]
[392182807,1761242909460,996.56337141,0.00021179,2]
[392182808,1761242909481,4003.43662859,0.00021179,2]
[392182809,1761242911357,300.0,0.000145,2]
[392182810,1761242915166,306.2931045,0.0002012,7]
[392182811,1761242918658,-300.0,0.00021192,2]
[392182812,1761242927888,215.9,0.00019329,2]
[392182813,1761242928286,431.8,0.0002025,2]
[392182814,1761242928680,647.69,0.0002117,2]
[392182815,1761242932100,150.0,0.00017927,30]
[392182816,1761242932296,5000.0,0.00021192,2]
[392182817,1761242932503,185.06,0.0001878,30]
[392182818,1761242932908,277.58,0.00019634,30]
[392182819,1761242933312,370.11,0.00020488,30]
[392182820,1761242933762,-666.0,0.00021232,2]
[392182821,1761242936828,-462.64,0.00021341,30]
[392182822,1761242947582,352.33914356,0.00016,2]
[392182823,1761242951778,-300.0,0.000216,2]
[392182873,1761242954736,5000.0,0.000216,2]
[392182892,1761242966821,-300.0,0.00021601,20]
[392182893,1761242966850,-300.0,0.00021601,20]
[392182894,1761242967002,-300.0,0.00021601,20]
[392182895,1761242967031,-300.0,0.00021601,20]
[392182896,1761242967059,-300.0,0.00021601,20]
[392182897,1761242967087,-300.0,0.00021601,20]
[392182898,1761242967115,-300.0,0.00021601,20]
[392182899,1761242967143,-300.0,0.00021601,20]
[392182900,1761242967171,-300.0,0.00021601,20]
[392182901,1761242967199,-300.0,0.00021601,20]
[392182902,1761242967228,-300.0,0.00021601,20]
[392182903,1761242967256,-300.0,0.00021601,20]
[392182904,1761242967285,-300.0,0.00021601,20]
[392182905,1761242967314,-300.0,0.00021601,20]
[392182906,1761242967345,-300.0,0.00021601,20]
[392182907,1761242978297,1000.01,0.00021601,2]
[392182908,1761242978323,3999.99,0.00021601,2]
[392182909,1761242982842,175.34672668,0.00021567,2]
[392182910,1761242985202,-7284.02987843,0.00021601,2]
[392182911,1761242985228,-10000.01,0.00021601,2]
[392182912,1761242985361,-10000.01,0.00021601,2]
[392182913,1761242985503,-10000.01,0.00021601,2]
[392182914,1761242985688,-4313.47064709,0.00021601,2]
[392182915,1761242996926,-579.77,0.00021917,2]
[392182916,1761243001550,5000.0,0.00021917,2]